bitfinex-derivatives/quotes_SOLF0:USTF0_20260302
["timestamp","ask_amount","ask_price","bid_price","bid_amount"]
[1772475946436,10.295,87.409,87.369,20.55026938]
[1772475946644,20.22468179,87.408,87.347,20.55026938]
[1772475946843,20.22468179,87.408,87.331,20.55026938]
[1772475947251,10.297,87.39,87.331,20.55026938]
[1772475948345,10.297,87.39,87.34,10.303]
[1772475949442,10.298,87.383,87.332,10.304]
[1772475950543,10.298,87.383,87.332,31.15579767]
[1772475950751,10.3,87.367,87.315,10.306]
[1772475951144,20.73380828,87.376,87.314,20.85179767]
[1772475951448,20.73380828,87.376,87.307,10.307]
[1772475951449,10.3,87.361,87.307,10.307]
[1772475951654,10.3,87.361,87.307,20.85179767]
[1772475951841,20.73380828,87.393,87.311,20.85179767]
[1772475952243,20.73380828,87.393,87.332,20.85179767]
[1772475954249,10.299,87.375,87.332,20.85179767]
[1772475955049,20.73380828,87.393,87.332,20.85179767]
[1772475955050,10.299,87.368,87.332,20.85179767]
[1772475957754,10.298,87.377,87.333,10.304]
[1772475958757,10.297,87.388,87.34,31.15479767]
[1772475959859,10.298,87.381,87.34,31.15479767]
[1772475960560,10.298,87.381,87.34,20.85179767]
[1772475960761,20.73380828,87.374,87.322,20.85179767]
[1772475961952,20.73380828,87.368,87.309,10.58259026]
[1772475962256,20.73380828,87.359,87.289,20.85179767]
[1772475962659,20.73380828,87.359,87.292,10.308]
[1772475963059,20.73380828,87.359,87.307,20.85179767]
[1772475964459,10.302,87.344,87.307,20.85179767]
[1772475964663,20.73380828,87.359,87.307,20.85179767]
[1772475966366,10.303,87.338,87.307,20.85179767]
[1772475966760,10.302,87.345,87.307,20.85179767]
[1772475971262,20.73380828,87.359,87.31,20.85179767]
[1772475971863,20.73380828,87.359,87.291,20.85179767]
[1772475972261,20.73380828,87.359,87.3,10.307]
[1772475973370,10.303,87.338,87.3,10.307]
[1772475974374,20.73380828,87.376,87.305,20.85179767]
[1772475974561,20.73380828,87.392,87.311,20.85179767]
[1772475974762,20.73380828,87.419,87.331,20.85179767]
[1772475975060,20.73380828,87.419,87.358,20.85179767]
[1772475976072,10.295,87.405,87.358,20.85179767]
[1772475977067,20.73380828,87.419,87.358,20.85179767]
[1772475978470,20.82818249,87.44,87.358,20.85179767]
[1772475979065,20.82818249,87.424,87.351,20.5775934]
[1772475979471,20.82818249,87.393,87.335,20.5775934]
[1772475980374,10.298,87.379,87.335,20.5775934]
[1772475981082,10.297,87.387,87.336,20.5775934]
[1772475981275,20.82818249,87.393,87.336,20.5775934]
[1772475982067,20.82818249,87.393,87.338,30.8805934]
[1772475983276,10.298,87.381,87.338,30.8805934]
[1772475983673,20.82818249,87.393,87.341,20.5775934]
[1772475983870,10.297,87.39,87.341,20.5775934]
[1772475984375,20.82818249,87.409,87.341,20.5775934]
[1772475984576,8.98262162,87.42,87.341,20.5775934]
[1772475984577,20.82818249,87.411,87.341,20.5775934]
[1772475984980,10.297,87.393,87.351,20.5775934]
[1772475985282,20.82818249,87.411,87.334,20.5775934]
[1772475985876,20.82818249,87.429,87.343,20.5775934]
[1772475986080,20.82818249,87.429,87.361,20.5775934]
[1772475986273,20.82818249,87.446,87.381,20.5775934]
[1772475988173,10.292,87.433,87.381,20.5775934]
[1772475988478,20.82818249,87.446,87.364,20.5775934]
[1772475989080,20.82818249,87.446,87.375,20.5775934]
[1772475992276,10.294,87.418,87.375,20.5775934]
[1772475993583,10.294,87.418,87.37,10.299]
[1772475993584,20.82818249,87.446,87.389,20.5775934]
[1772475995186,10.292,87.431,87.389,20.5775934]
[1772475995484,20.82818249,87.446,87.368,20.5775934]
[1772475995686,20.82818249,87.422,87.351,20.5775934]
[1772475996383,10.296,87.396,87.353,20.5775934]
[1772475997284,20.82818249,87.419,87.331,20.5775934]
[1772475997482,20.82818249,87.418,87.331,20.5775934]
[1772475997887,20.82818249,87.391,87.331,20.5775934]
[1772475998689,10.299,87.373,87.331,20.5775934]
[1772476000090,20.82818249,87.391,87.331,20.5775934]
[1772476000692,10.3,87.366,87.32,10.305]
[1772476000892,10.3,87.366,87.321,20.5775934]
[1772476001591,10.3,87.366,87.324,20.5775934]
[1772476005192,10.298,87.378,87.332,20.5775934]
[1772476006292,10.298,87.378,87.336,10.303]
[1772476007893,10.299,87.371,87.332,20.5775934]
[1772476008990,19.39917614,87.379,87.321,19.56127354]
[1772476009190,19.39917614,87.379,87.33,3.35464946]
[1772476010394,10.299,87.372,87.33,3.35464946]
[1772476011392,19.39917614,87.369,87.31,3.35464946]
[1772476011697,19.39917614,87.369,87.31,22.915923]
[1772476012097,10.3,87.361,87.317,10.305]
[1772476012297,19.39917614,87.385,87.331,19.56127354]
[1772476012501,10.297,87.393,87.35,3.35464946]
[1772476012793,19.39917614,87.416,87.36,22.915923]
[1772476013695,19.39917614,87.434,87.39,3.35464946]
[1772476014596,19.39917614,87.429,87.38,3.35464946]
[1772476014895,19.39917614,87.429,87.37,3.35464946]
[1772476015095,19.39917614,87.429,87.372,19.56127354]
[1772476015096,10.294,87.416,87.372,19.56127354]
[1772476015302,19.39917614,87.429,87.372,19.56127354]
[1772476015303,19.39917614,87.429,87.38,3.35464946]
[1772476016203,10.293,87.424,87.38,3.35464946]
[1772476016602,10.293,87.424,87.372,19.56127354]
[1772476017001,10.293,87.424,87.374,19.56127354]
[1772476018203,10.293,87.424,87.375,10.298]
[1772476018405,10.293,87.424,87.376,19.56127354]
[1772476018600,10.292,87.432,87.376,19.56127354]
[1772476019301,8.97532876,87.46,87.376,19.56127354]
[1772476019302,29.69217614,87.425,87.376,19.56127354]
[1772476019506,19.39917614,87.425,87.376,19.56127354]
[1772476019995,29.55332876,87.46,87.376,19.56127354]
[1772476019996,19.39917614,87.446,87.376,19.56127354]
[1772476020398,19.39917614,87.446,87.368,10.63016347]
[1772476020399,19.39917614,87.446,87.386,19.56127354]
[1772476020599,19.39917614,87.446,87.36,8.97532876]
[1772476020600,8.97532876,87.44,87.361,19.56127354]
[1772476020797,19.39917614,87.439,87.361,19.56127354]
[1772476021299,19.39917614,87.439,87.37,19.56127354]
[1772476022098,10.293,87.42,87.372,10.299]
[1772476022600,10.294,87.413,87.37,19.56127354]
[1772476023504,19.39917614,87.439,87.372,19.56127354]
[1772476024507,10.292,87.431,87.385,19.56127354]
[1772476025910,10.293,87.424,87.385,19.56127354]
[1772476026909,37.34609893,87.467,87.41,8.97532876]
[1772476027207,39.03988436,87.485,87.43,8.97532876]
[1772476027506,8.97532876,87.54,87.45,8.97532876]
[1772476028908,14.17366242,87.589,87.45,8.97532876]
[1772476028909,8.97532876,87.58,87.49,8.97532876]
[1772476029406,8.97532876,87.58,87.47,8.97532876]
[1772476029603,29.59960012,87.556,87.502,10.284]
[1772476030405,30.25122632,87.575,87.49,8.97532876]
[1772476031005,30.25122632,87.575,87.524,10.281]
[1772476031715,30.25122632,87.575,87.51,8.97532876]
[1772476032414,30.39938705,87.595,87.51,8.97532876]
[1772476032605,30.39938705,87.595,87.49,14.11973113]
[1772476032606,30.39938705,87.595,87.53,8.97532876]
[1772476033009,30.39938705,87.592,87.51,8.97532876]
[1772476033207,30.39938705,87.592,87.49,8.97532876]
[1772476033612,30.39836824,87.579,87.49,8.97532876]
[1772476033814,30.39836824,87.579,87.47,14.11609709]
[1772476034114,30.39836824,87.579,87.47,8.97532876]
[1772476034315,30.39836824,87.579,87.47,14.11609709]
[1772476034615,30.39836824,87.579,87.47,8.97532876]
[1772476034812,30.39836824,87.579,87.47,14.11609709]
[1772476035314,30.39836824,87.579,87.49,8.97532876]
[1772476035915,30.39836824,87.579,87.511,10.283]
[1772476036715,29.88636674,87.577,87.49,8.97532876]
[1772476038310,29.90232967,87.594,87.49,8.97532876]
[1772476038512,29.90232967,87.614,87.54,8.97532876]
[1772476038914,29.90232967,87.614,87.571,10.275]
[1772476039314,29.90232967,87.614,87.54,8.97532876]
[1772476040116,29.90060905,87.601,87.52,8.97532876]
[1772476040318,29.90060905,87.601,87.52,14.11478702]
[1772476040828,29.90060905,87.601,87.534,10.28]
[1772476041120,29.94311004,87.586,87.521,10.281]
[1772476041317,29.94311004,87.586,87.53,5.13887127]
[1772476041516,8.97532876,87.61,87.52,8.97532876]
[1772476041822,29.94311004,87.607,87.541,10.279]
[1772476042125,29.94311004,87.607,87.52,8.97532876]
[1772476042517,29.94311004,87.607,87.55,10.278]
[1772476043225,29.94311004,87.607,87.54,8.97532876]
[1772476043623,8.97532876,87.63,87.54,8.97532876]
[1772476043624,30.01484197,87.605,87.54,8.97532876]
[1772476043822,30.01484197,87.605,87.462,160.047]
[1772476043823,30.01484197,87.605,87.52,8.97532876]
[1772476044428,40.63813909,87.584,87.52,8.97532876]
[1772476044628,30.36413909,87.583,87.52,8.97532876]
[1772476044922,159.727,87.638,87.452,160.065]
[1772476044923,30.36413909,87.573,87.5,5.13828734]
[1772476045723,30.3632322,87.571,87.515,10.282]
[1772476045922,30.3632322,87.571,87.448,20.58]
[1772476046227,30.3632322,87.571,87.48,5.13823596]
[1772476046427,8.97532876,87.59,87.48,5.13823596]
[1772476046428,30.25259789,87.558,87.496,10.284]
[1772476047233,10.278,87.553,87.496,10.284]
[1772476050037,30.08540123,87.552,87.496,10.284]
[1772476050238,10.278,87.549,87.496,10.284]
[1772476050436,30.07420508,87.548,87.496,10.284]
[1772476050741,30.07420508,87.526,87.45,8.97532876]
[1772476051436,30.07296992,87.549,87.47,8.97532876]
[1772476053439,30.27398188,87.54,87.48,10.286]
[1772476054435,40.7746585,87.537,87.48,10.286]
[1772476054634,30.4946585,87.536,87.48,10.286]
[1772476054836,30.4946585,87.536,87.497,10.284]
[1772476055134,30.4946585,87.553,87.49,8.97532876]
[1772476055331,10.279,87.543,87.49,8.97532876]
[1772476055536,30.49402979,87.542,87.486,10.285]
[1772476056038,30.49402979,87.54,87.486,10.285]
[1772476056642,30.437206,87.53,87.46,8.95312635]
[1772476057438,30.437206,87.53,87.483,10.286]
[1772476057642,30.437206,87.53,87.46,8.95312635]
[1772476058039,30.437206,87.53,87.481,10.286]
[1772476058836,30.437206,87.53,87.488,10.285]
[1772476059443,30.44937108,87.546,87.495,10.284]
[1772476059744,30.44937108,87.546,87.5,3.34257181]
[1772476059940,30.44937108,87.546,87.49,3.34257181]
[1772476060641,30.44937108,87.546,87.5,3.34257181]
[1772476061740,30.44937108,87.546,87.509,10.283]
[1772476062042,30.44937108,87.546,87.51,3.34257181]
[1772476062237,30.44937108,87.546,87.5,3.34257181]
[1772476063439,30.44937108,87.546,87.474,5.14160222]
[1772476063440,30.44803053,87.526,87.446,10.40110371]
[1772476063744,30.44803053,87.526,87.48,3.34257181]
[1772476063945,30.44803053,87.526,87.49,3.34257181]
[1772476064145,30.44803053,87.541,87.49,3.34257181]
[1772476065042,30.44564333,87.539,87.49,3.34257181]
[1772476066245,30.45133811,87.537,87.49,13.62757181]
[1772476066845,30.45133811,87.537,87.504,10.283]
[1772476067442,10.278,87.553,87.51,3.34257181]
[1772476067643,10.278,87.547,87.51,3.34257181]
[1772476067942,30.45075014,87.555,87.51,10.283]
[1772476069149,30.45428535,87.553,87.503,10.284]
[1772476070241,41.11215096,87.55,87.503,10.284]
[1772476070446,41.11215096,87.55,87.51,10.283]
[1772476070641,30.83415096,87.55,87.51,3.34257181]
[1772476070847,13.92594904,87.627,87.462,34.34]
[1772476070848,3.34257181,87.6,87.54,3.34257181]
[1772476071049,3.34257181,87.6,87.55,3.34257181]
[1772476071348,488.59347395,87.586,87.55,3.34257181]
[1772476071540,478.31947395,87.586,87.54,3.34257181]
[1772476071745,478.31947395,87.586,87.55,3.34257181]
[1772476071943,478.31947395,87.586,87.54,3.34257181]
[1772476072144,478.31947395,87.586,87.55,3.34257181]
[1772476072549,478.31947395,87.586,87.544,2.97118448]
[1772476073244,478.31947395,87.586,87.552,10.278]
[1772476073445,22.00825204,87.604,87.544,2.97118448]
[1772476073947,22.00825204,87.604,87.552,10.278]
[1772476075147,22.00825204,87.597,87.544,13.25018448]
[1772476075347,22.00825204,87.597,87.53,8.93959507]
[1772476075545,22.00825204,87.597,87.532,10.40110371]
[1772476075749,10.274,87.587,87.544,10.279]
[1772476075953,22.00825204,87.597,87.533,3.12104855]
[1772476076449,22.00825204,87.597,87.539,10.279]
[1772476076753,22.00825204,87.597,87.533,3.12104855]
[1772476076955,22.00825204,87.597,87.53,8.93959507]
[1772476076956,22.00825204,87.618,87.539,3.09232534]
[1772476077150,22.00825204,87.618,87.544,3.09232534]
[1772476078851,32.28025204,87.599,87.552,10.278]
[1772476079053,22.00825204,87.598,87.534,10.40110371]
[1772476079346,8.93959507,87.63,87.541,3.23628977]
[1772476079557,8.93959507,87.63,87.54,8.93959507]
[1772476079558,22.00825204,87.629,87.557,3.23628977]
[1772476079854,183.04,87.659,87.505,3.23628977]
[1772476079855,22.00825204,87.589,87.505,3.23628977]
[1772476080551,10.276,87.571,87.521,10.281]
[1772476081353,22.00825204,87.569,87.482,22.89834429]
[1772476081957,22.00825204,87.569,87.501,10.284]
[1772476083257,8.93959507,87.58,87.501,10.284]
[1772476083258,10.279,87.546,87.501,10.284]
[1772476084660,10.279,87.546,87.455,20.579]
[1772476084661,22.00825204,87.537,87.465,22.89834429]
[1772476085464,22.00825204,87.537,87.462,10.288]
[1772476086263,10.283,87.512,87.462,10.288]
[1772476087860,22.00825204,87.52,87.47,10.287]
[1772476089958,10.282,87.519,87.47,10.287]
[1772476090262,32.29025204,87.519,87.47,10.287]
[1772476090663,22.00825204,87.518,87.47,10.287]
[1772476092565,22.00825204,87.518,87.434,445.02245519]
[1772476092566,22.00825204,87.518,87.477,10.287]
[1772476092767,22.00825204,87.534,87.463,22.89834429]
[1772476093854,10.28,87.531,87.484,10.286]
[1772476094066,22.00825204,87.531,87.463,22.89834429]
[1772476094762,8.93959507,87.56,87.463,22.89834429]
[1772476094763,22.00825204,87.525,87.475,10.287]
[1772476096167,22.00825204,87.525,87.481,10.286]
[1772476096366,22.25005346,87.559,87.481,22.55280259]
[1772476096966,10.277,87.558,87.511,10.283]
[1772476097167,22.25005346,87.576,87.501,22.55280259]
[1772476097368,23.70362544,87.573,87.52,10.281]
[1772476098065,23.70362544,87.569,87.52,10.281]
[1772476098269,23.70362544,87.569,87.501,22.55280259]
[1772476098663,23.70362544,87.565,87.501,22.55280259]
[1772476098962,8.93959507,87.6,87.517,23.12428352]
[1772476098963,23.70362544,87.599,87.517,23.12428352]
[1772476099168,0.00062717,87.622,87.57,8.93959507]
[1772476099369,0.00062717,87.622,87.53,8.93959507]
[1772476099664,8.93959507,87.61,87.526,23.12428352]
[1772476099857,10.273,87.592,87.536,10.28]
[1772476100061,8.93959507,87.61,87.536,10.28]
[1772476100367,8.93959507,87.61,87.531,23.12428352]
[1772476100568,10.271,87.608,87.552,10.278]
[1772476101069,23.70362544,87.607,87.552,10.278]
[1772476101563,23.70362544,87.605,87.552,10.278]
[1772476101861,23.70362544,87.605,87.531,23.12428352]
[1772476102668,23.70362544,87.605,87.54,10.279]
[1772476102864,23.70362544,87.605,87.5,8.93959507]
[1772476103062,23.70362544,87.582,87.52,10.281]
[1772476103471,23.70362544,87.582,87.482,20.572]
[1772476103472,23.70362544,87.582,87.496,23.12428352]
[1772476103769,23.70362544,87.559,87.496,23.12428352]
[1772476104372,10.278,87.549,87.498,10.284]
[1772476106068,10.279,87.543,87.488,10.285]
[1772476106269,23.70362544,87.548,87.488,10.285]
[1772476107267,10.278,87.547,87.488,10.285]
[1772476107461,33.98162544,87.547,87.488,10.285]
[1772476107661,8.93959507,87.57,87.48,8.93959507]
[1772476107662,23.70362544,87.546,87.48,8.93959507]
[1772476107867,23.70362544,87.546,87.478,23.12428352]
[1772476108764,23.70362544,87.546,87.467,10.288]
[1772476108966,23.70362544,87.522,87.461,23.12428352]
[1772476109362,23.70362544,87.518,87.463,23.12428352]
[1772476110073,23.70362544,87.549,87.474,23.12428352]
[1772476110771,10.28,87.53,87.475,10.287]
[1772476111465,23.70362544,87.527,87.465,10.288]
[1772476112365,10.282,87.519,87.465,10.288]
[1772476112564,10.282,87.519,87.46,32.06387859]
[1772476113071,10.282,87.519,87.461,23.12428352]
[1772476113466,33.98562544,87.519,87.461,23.12428352]
[1772476113766,10.282,87.515,87.462,10.288]
[1772476113968,23.70362544,87.514,87.44,8.93959507]
[1772476114173,10.283,87.511,87.452,10.289]
[1772476114375,10.283,87.511,87.453,23.12428352]
[1772476115476,23.70362544,87.514,87.463,23.12428352]
[1772476116173,23.70362544,87.514,87.466,10.288]
[1772476118073,10.281,87.529,87.474,23.12428352]
[1772476118574,23.70362544,87.528,87.474,23.12428352]
[1772476119771,23.70362544,87.503,87.44,32.08131617]
[1772476119973,23.70362544,87.503,87.441,23.12428352]
[1772476121477,23.70362544,87.539,87.441,23.12428352]
[1772476123172,23.70362544,87.539,87.44,8.95703265]
[1772476123173,10.282,87.518,87.47,10.287]
[1772476123372,33.98562544,87.518,87.47,10.287]
[1772476123969,23.70362544,87.518,87.478,10.286]
[1772476124572,23.70362544,87.534,87.485,10.286]
[1772476124772,23.70362544,87.534,87.476,23.12428352]
[1772476124984,23.70362544,87.514,87.453,23.12428352]
[1772476125680,23.70362544,87.514,87.464,33.41228352]
[1772476126085,23.70362544,87.514,87.465,23.12428352]
[1772476127180,10.281,87.524,87.477,10.287]
[1772476127883,23.70362544,87.53,87.486,10.286]
[1772476128982,10.279,87.542,87.492,10.285]
[1772476129380,10.279,87.542,87.451,21.22282137]
[1772476129381,22.99120319,87.529,87.445,23.85847279]
[1772476130184,10.284,87.499,87.453,10.289]
[1772476130683,22.99120319,87.498,87.445,23.85847279]
[1772476132179,22.99120319,87.498,87.453,10.289]
[1772476133981,22.99120319,87.519,87.454,23.85847279]
[1772476134384,22.99120319,87.519,87.439,23.85847279]
[1772476134590,22.99120319,87.497,87.441,23.85847279]
[1772476135089,22.99120319,87.497,87.456,10.289]
[1772476135690,10.285,87.494,87.446,10.29]
[1772476135993,22.99120319,87.493,87.441,23.85847279]
[1772476137193,10.285,87.489,87.443,10.291]
[1772476137789,10.286,87.483,87.441,23.85847279]
[1772476137997,22.99120319,87.493,87.425,23.85847279]
[1772476138792,10.286,87.483,87.435,10.292]
[1772476139204,22.99120319,87.493,87.446,34.14847279]
[1772476139993,22.99120319,87.493,87.452,10.289]
[1772476140795,11.44,87.556,87.426,10.40345809]
[1772476140796,22.99120319,87.539,87.461,23.85847279]
[1772476140989,22.99120319,87.539,87.481,23.85847279]
[1772476141294,10.276,87.567,87.512,10.282]
[1772476142093,1.30493188,87.569,87.521,10.281]
[1772476142985,10.276,87.568,87.512,34.14047279]
[1772476143396,1.30493188,87.569,87.513,23.85847279]
[1772476143593,1.30493188,87.569,87.518,10.282]
[1772476143994,1.30493188,87.569,87.513,23.85847279]
[1772476144191,22.99120319,87.568,87.516,10.282]
[1772476146095,22.99120319,87.556,87.494,23.85847279]
[1772476146792,10.278,87.554,87.505,10.283]
[1772476147296,22.99120319,87.556,87.505,10.283]
[1772476147692,10.277,87.562,87.51,34.14147279]
[1772476147894,22.99120319,87.561,87.51,10.283]
[1772476148101,22.99120319,87.559,87.478,23.85847279]
[1772476148593,1.30493188,87.569,87.491,23.85847279]
[1772476148594,22.99120319,87.568,87.491,23.85847279]
[1772476149001,33.26920319,87.553,87.499,10.284]
[1772476149192,22.99120319,87.552,87.491,23.85847279]
[1772476149396,22.99120319,87.552,87.499,23.85847279]
[1772476150195,10.278,87.551,87.499,34.14247279]
[1772476150395,22.99120319,87.552,87.49,8.95703265]
[1772476150995,22.99120319,87.542,87.491,10.285]
[1772476151199,22.99120319,87.542,87.46,23.85847279]
[1772476151900,10.283,87.509,87.461,10.288]
[1772476153099,10.283,87.509,87.462,23.85847279]
[1772476154600,10.283,87.509,87.441,10.40345809]
[1772476154601,10.284,87.497,87.446,23.85847279]
[1772476154908,22.99120319,87.504,87.446,23.85847279]
[1772476155402,22.99120319,87.504,87.449,23.85847279]
[1772476156202,22.99120319,87.504,87.432,24.25624951]
[1772476156699,10.283,87.508,87.457,24.25624951]
[1772476156901,25.38895263,87.539,87.457,24.25624951]
[1772476157297,25.38895263,87.539,87.451,10.40345809]
[1772476157298,25.38895263,87.539,87.476,24.25624951]
[1772476158292,10.281,87.525,87.478,10.286]
[1772476158499,10.281,87.525,87.479,23.47688941]
[1772476159607,10.281,87.525,87.479,33.76288941]
[1772476160597,10.28,87.533,87.486,10.285]
[1772476161705,10.28,87.533,87.47,8.95703265]
[1772476161706,24.74280951,87.533,87.463,23.47688941]
[1772476163599,24.74280951,87.519,87.435,23.47688941]
[1772476163803,24.74280951,87.492,87.435,23.47688941]
[1772476164002,24.74280951,87.492,87.42,10.40345809]
[1772476164203,24.74280951,87.492,87.419,23.47688941]
[1772476165403,24.74280951,87.492,87.422,23.47688941]
[1772476166503,10.287,87.477,87.424,23.47688941]
[1772476166706,24.74280951,87.492,87.424,23.47688941]
[1772476170203,10.287,87.474,87.425,10.293]
[1772476171514,10.288,87.468,87.425,10.293]
[1772476172108,24.74280951,87.478,87.39,23.47688941]
[1772476172520,24.74280951,87.459,87.39,23.47688941]
[1772476173217,24.74280951,87.459,87.391,10.297]
[1772476173412,24.74280951,87.459,87.39,23.47688941]
[1772476174716,10.292,87.432,87.39,23.47688941]
[1772476177116,10.291,87.441,87.392,10.297]
[1772476178519,10.292,87.434,87.392,10.297]
[1772476179822,10.292,87.434,87.37,8.97322361]
[1772476179823,10.292,87.434,87.395,23.47688941]
[1772476180220,8.97322361,87.46,87.375,23.47688941]
[1772476180221,10.292,87.427,87.375,23.47688941]
[1772476181219,10.292,87.427,87.378,10.298]
[1772476181814,10.292,87.427,87.378,33.77488941]
[1772476183221,10.292,87.427,87.379,23.47688941]
[1772476183520,10.293,87.42,87.379,23.47688941]
[1772476183724,24.74280951,87.433,87.363,53.03456618]
[1772476183725,24.74280951,87.433,87.363,76.51145559]
[1772476183915,24.74280951,87.419,87.347,23.47688941]
[1772476184117,10.297,87.392,87.347,23.47688941]
[1772476184532,24.74280951,87.397,87.347,23.47688941]
[1772476186333,10.296,87.396,87.348,23.47688941]
[1772476186926,24.74280951,87.395,87.33,23.47688941]
[1772476188333,25.65798761,87.375,87.33,23.47688941]
[1772476189133,25.65798761,87.375,87.301,25.44604134]
[1772476189334,10.3,87.366,87.321,10.305]
[1772476190126,10.3,87.366,87.315,25.44604134]
[1772476190538,10.299,87.374,87.323,10.305]
[1772476191232,10.298,87.381,87.337,25.44604134]
[1772476191938,10.297,87.391,87.337,25.44604134]
[1772476192134,25.65798761,87.428,87.341,25.44604134]
[1772476193238,10.296,87.399,87.353,35.74704134]
[1772476195027,25.65798761,87.411,87.34,8.97322361]
[1772476195028,10.295,87.407,87.359,10.3]
[1772476195228,25.65798761,87.411,87.359,10.3]
[1772476195830,25.65798761,87.411,87.34,8.97322361]
[1772476195831,25.65798761,87.429,87.367,25.44604134]
[1772476196639,25.65798761,87.429,87.375,25.44604134]
[1772476197537,25.65798761,87.429,87.377,10.298]
[1772476197538,10.294,87.417,87.377,10.298]
[1772476197742,25.65798761,87.429,87.375,25.44604134]
[1772476199742,10.294,87.418,87.375,25.44604134]
[1772476200339,1.9912226,87.468,87.375,25.44604134]
[1772476200340,27.64921021,87.468,87.375,25.44604134]
[1772476200545,27.64921021,87.468,87.36,8.97322361]
[1772476200546,25.65798761,87.468,87.381,25.44604134]
[1772476200845,159.964,87.509,87.381,25.44604134]
[1772476200846,25.65798761,87.432,87.381,25.44604134]
[1772476201441,25.65798761,87.441,87.381,25.44604134]
[1772476203345,10.293,87.423,87.381,25.44604134]
[1772476203546,25.65798761,87.426,87.361,25.44604134]
[1772476204849,10.294,87.414,87.371,10.299]
[1772476205544,10.293,87.423,87.371,35.74504134]
[1772476205745,10.293,87.423,87.374,10.299]
[1772476205951,25.65798761,87.459,87.381,25.44604134]
[1772476206147,10.292,87.434,87.383,10.298]
[1772476206448,10.292,87.434,87.384,25.44604134]
[1772476207146,10.293,87.425,87.384,25.44604134]
[1772476207345,25.65798761,87.434,87.369,25.44604134]
[1772476208147,8.97322361,87.48,87.308,13.94063843]
[1772476208148,25.65798761,87.418,87.337,25.44604134]
[1772476208555,10.3,87.365,87.32,25.44604134]
[1772476210445,25.65798761,87.367,87.303,25.44604134]
[1772476210645,25.65798761,87.367,87.292,1.99166705]
[1772476210849,20.593,87.396,87.286,25.44604134]
[1772476210850,25.65798761,87.359,87.286,25.44604134]
[1772476211048,10.302,87.344,87.297,10.308]
[1772476211245,25.65798761,87.359,87.291,25.44604134]
[1772476211452,20.593,87.396,87.291,25.44604134]
[1772476211453,25.65798761,87.379,87.291,25.44604134]
[1772476211758,25.65798761,87.379,87.292,25.44604134]
[1772476212258,25.65798761,87.352,87.293,10.308]
[1772476212453,25.65798761,87.352,87.293,35.75404134]
[1772476212651,25.65798761,87.352,87.294,25.44604134]
[1772476212847,10.303,87.337,87.294,25.44604134]
[1772476213053,25.65798761,87.352,87.294,25.44604134]
[1772476213248,25.65798761,87.379,87.294,25.44604134]
[1772476214155,10.301,87.354,87.309,25.44604134]
[1772476214359,25.65798761,87.379,87.309,25.44604134]
[1772476214760,10.301,87.356,87.309,25.44604134]
[1772476215960,25.65798761,87.379,87.3,8.97322361]
[1772476215961,10.299,87.368,87.312,26.35777627]
[1772476216160,25.65798761,87.379,87.312,26.35777627]
[1772476216561,10.301,87.352,87.312,26.35777627]
[1772476216863,26.85147417,87.381,87.312,26.35777627]
[1772476218359,26.85147417,87.381,87.3,8.97322361]
[1772476218360,26.85147417,87.381,87.313,26.82443503]
[1772476219468,26.85147417,87.381,87.325,26.82443503]
[1772476219857,10.299,87.373,87.325,26.82443503]
[1772476220060,8.97322361,87.4,87.321,10.305]
[1772476220061,26.30314853,87.372,87.321,10.305]
[1772476220460,3.35523613,87.37,87.321,10.305]
[1772476220760,26.30314853,87.41,87.36,3.35523613]
[1772476221169,29.65838466,87.41,87.36,3.35523613]
[1772476221565,26.30314853,87.399,87.35,30.17967116]
[1772476222363,26.30314853,87.399,87.35,26.82443503]
[1772476222762,10.298,87.383,87.35,26.82443503]
[1772476222970,26.30314853,87.416,87.36,3.35523613]
[1772476223263,26.30314853,87.416,87.37,3.35523613]
[1772476224170,26.30314853,87.416,87.36,26.82443503]
[1772476224365,3.35523613,87.42,87.36,30.17967116]
[1772476224565,3.35523613,87.41,87.36,30.17967116]
[1772476225063,10.295,87.409,87.361,10.3]
[1772476225371,29.65838466,87.42,87.37,3.35523613]
[1772476225667,26.30314853,87.42,87.37,3.35523613]
[1772476226268,10.294,87.41,87.37,3.35523613]
[1772476228271,26.30314853,87.392,87.35,3.35523613]
[1772476228675,10.295,87.409,87.37,30.17967116]